{"text_format":"1","workbook":"xlsx","n_sheets":3,"sheets":["Week SetUp","Boys Si Main Draw Prep","Girls Si Main 24&32"],"not_rendered":{"charts":0,"images":2,"macros":1,"external_links":1,"defined_names":16,"comments":2,"pivot_tables":0},"unopened":[],"bounds":{"document_bytes":16777216,"sheet_cells":100000,"rows_first":2000,"rows_last":500,"rows_between":2000,"halvings":0,"cell_chars":16384,"cell_head_chars":4096},"cells_cut":0,"cells_raw":0,"read":"whole","date_system":"1900"}

{"sheet":"Week SetUp","index":0,"n_rows":17,"n_cols":5,"rows_kept":17,"cut":false,"hidden":false,"merged":[]}
["Junior Week SetUp page"]
["DO NOT DELETE THIS PAGE !!!"]
[]
["FILL IN ALL GREEN FIELDS BELOW"]
["Tournament Title (full name)"]
["2ο ΕΝΩΣΙΑΚΟ",null,null,null,"2005 v1.0"]
["Event Category",null,null,"Download from: ","www.tennisofficial.com"]
["OPEN JUNIOR"]
["Week of (Monday). Use format, 15/01/2003 (day/month/year)",null,"City, Country","Group","ITF Referee"]
["17/03/2012",null,"Ο.Α. ΚΑΛΑΜΑΤΑΣ","ΚΑΛΑΜΑΤΑ","ΚΩΝΣΤΑΝΤΟΠΟΥΛΟΣ Α."]
["ITF Tournament Calendar designation"]
[]
[]
[]
["Copyright © ITF Limited, trading as the International Tennis Federation, 2005"]
["All rights reserved. Reproduction of this work in whole or in part, without the prior permission of the ITF is prohibited."]
["Inquiries and comments to:","forms@itftennis.com"]

{"sheet":"Boys Si Main Draw Prep","index":1,"n_rows":134,"n_cols":21,"rows_kept":134,"cut":false,"hidden":false,"merged":[[4,0,4,1]]}
[{"$f":"'Week SetUp'!$A$6","v":"2ο ΕΝΩΣΙΑΚΟ"},null,null,"BOYS SINGLES MAIN DRAW"]
[{"$f":"'Week SetUp'!$A$8","v":"OPEN JUNIOR"},null,null,"PREPARATION LIST"]
["DO NO DELETE THIS PAGE IF YOU ARE USING LINK-IN'S TO THE DRAW",null,null,null,null,null,null,null,null,null,null,null,null,null,"ITF Referee's signature",null,null,null,null,"Over 18",{"$f":"YEAR($A$5)-18","v":1994}]
["Week of",null,"City, Country","Group",null,null,"Tourn. ID",null,null,"ITF Referee",null,null,null,null,null,null,null,null,null,"Under 13",{"$f":"YEAR($A$5)-13","v":1999}]
[{"$f":"'Week SetUp'!$A$10","v":"17/03/2012"},null,{"$f":"'Week SetUp'!$C$10","v":"Ο.Α. ΚΑΛΑΜΑΤΑΣ"},{"$f":"'Week SetUp'!$D$10","v":"ΚΑΛΑΜΑΤΑ"},null,null,{"$f":"'Week SetUp'!$A$12","v":0},null,null,{"$f":"'Week SetUp'!$E$10","v":"ΚΩΝΣΤΑΝΤΟΠΟΥΛΟΣ Α."},null,null,null,null,null,null,null,{"$f":"COUNTA(R7:R134)","v":0}]
["Line","Family name","First name","Nat.","Date of Birth\nyy/mm/dd(US)","On\nAccept. list\nYes","Signed-in\nYes","ITF 18\nRanking","Pro-\nRanking","Other ordering",null,null,"Seed Sort",null,"Accept status","Seed\nRanking","AccSort","Seed\nPosition"]
[1,"ΜΑΝΔΡΟΥ","ΚΩΝΣΤΑΝΤΙΝΑ",null,null,null,null,null,null,null,null,null,{"$f":"IF(R7=\"\",999,R7)","v":999},null,null,null,{"$f":"IF(O7=\"DA\",1,IF(O7=\"WC\",2,IF(O7=\"SE\",3,IF(O7=\"Q\",4,IF(O7=\"LL\",5,999)))))","v":999}]
[2,"ΠΑΠΑΝΤΩΝΗ","ΧΡΥΣΟΥΛΑ",null,null,null,null,null,null,null,null,null,999,null,null,null,999]
[3,"ΣΤΑΜΑΤΟΠΟΥΛΟΥ","ΜΑΡΙΑ",null,null,null,null,null,null,null,null,null,999,null,null,null,999]
[4,"ΚΥΡΙΜΗ","ΗΛΙΑ",null,null,null,null,null,null,null,null,null,999,null,null,null,999]
[5,"ΠΑΝΤΩΤΗ","ΔΑΝΑΗ",null,null,null,null,null,null,null,null,null,999,null,null,null,999]
[6,"ΛΙΓΚΡΗ","ΑΝΑΣΤΑΣΙΑ",null,null,null,null,null,null,null,null,null,999,null,null,null,999]
[7,"ΠΙΤΣΑΚΗ","ΑΝΑΣΤΑΣΙΑ",null,null,null,null,null,null,null,null,null,999,null,null,null,999]
[8,"ΤΣΙΛΙΜΠΗ","ΜΙΡΚΑ",null,null,null,null,null,null,null,null,null,999,null,null,null,999]
[9,"ΡΗΓΑ","ΣΤΥΛΙΑΝΗ",null,null,null,null,null,null,null,null,null,999,null,null,null,999]
[10,"ΚΑΡΑΜΟΥΝΤΖΟΥ","ΣΟΝΙΑ",null,null,null,null,null,null,null,null,null,999,null,null,null,999]
[11,"ΑΣΕΝΟΒΑ","ΓΚΕΡΙ",null,null,null,null,null,null,null,null,null,999,null,null,null,999]
[12,"ΠΑΠΑΚΩΝΣΤΑΝΤΙΝΟΥ","ΜΑΡΙΑΝΝΑ",null,null,null,null,null,null,null,null,null,999,null,null,null,999]
[13,"ΣΟΥΜΠΛΗ","ΘΕΟΔΩΡΑ",null,null,null,null,null,null,null,null,null,999,null,null,null,999]
[14,"ΑΘΑΝΑΣΟΠΟΥΛΟΥ","ΗΛΙΑΝΝΑ",null,null,null,null,null,null,null,null,null,999,null,null,null,999]
[15,"ΛΑΜΠΡΟΠΟΥΛΟΥ","ΜΑΤΙΝΑ",null,null,null,null,null,null,null,null,null,999,null,null,null,999]
[16,"ΜΠΛΟΥΓΟΥΡΑ","ΛΥΔΑ",null,null,null,null,null,null,null,null,null,999,null,null,null,999]
[17,"ΠΑΠΑΓΕΩΡΓΙΟΥ","ΑΛΕΞΑΝΔΡΑ",null,null,null,null,null,null,null,null,null,999,null,null,null,999]
[18,null,null,null,null,null,null,null,null,null,null,null,999,null,null,null,999]
[19,null,null,null,null,null,null,null,null,null,null,null,999,null,null,null,999]
[20,null,null,null,null,null,null,null,null,null,null,null,999,null,null,null,999]
[21,null,null,null,null,null,null,null,null,null,null,null,999,null,null,null,999]
[22,null,null,null,null,null,null,null,null,null,null,null,999,null,null,null,999]
[23,null,null,null,null,null,null,null,null,null,null,null,999,null,null,null,999]
[24,null,null,null,null,null,null,null,null,null,null,null,999,null,null,null,999]
[25,null,null,null,null,null,null,null,null,null,null,null,999,null,null,null,999]
[26,null,null,null,null,null,null,null,null,null,null,null,999,null,null,null,999]
[27,null,null,null,null,null,null,null,null,null,null,null,999,null,null,null,999]
[28,null,null,null,null,null,null,null,null,null,null,null,999,null,null,null,999]
[29,null,null,null,null,null,null,null,null,null,null,null,999,null,null,null,999]
[30,null,null,null,null,null,null,null,null,null,null,null,999,null,null,null,999]
[31,null,null,null,null,null,null,null,null,null,null,null,999,null,null,null,999]
[32,null,null,null,null,null,null,null,null,null,null,null,999,null,null,null,999]
[33,null,null,null,null,null,null,null,null,null,null,null,{"$f":"IF(R39=\"\",999,R39)","v":999},null,null,null,{"$f":"IF(O39=\"DA\",1,IF(O39=\"WC\",2,IF(O39=\"SE\",3,IF(O39=\"Q\",4,IF(O39=\"LL\",5,999)))))","v":999}]
[34,null,null,null,null,null,null,null,null,null,null,null,999,null,null,null,999]
[35,null,null,null,null,null,null,null,null,null,null,null,999,null,null,null,999]
[36,null,null,null,null,null,null,null,null,null,null,null,999,null,null,null,999]
[37,null,null,null,null,null,null,null,null,null,null,null,999,null,null,null,999]
[38,null,null,null,null,null,null,null,null,null,null,null,999,null,null,null,999]
[39,null,null,null,null,null,null,null,null,null,null,null,999,null,null,null,999]
[40,null,null,null,null,null,null,null,null,null,null,null,999,null,null,null,999]
[41,null,null,null,null,null,null,null,null,null,null,null,999,null,null,null,999]
[42,null,null,null,null,null,null,null,null,null,null,null,999,null,null,null,999]
[43,null,null,null,null,null,null,null,null,null,null,null,999,null,null,null,999]
[44,null,null,null,null,null,null,null,null,null,null,null,999,null,null,null,999]
[45,null,null,null,null,null,null,null,null,null,null,null,999,null,null,null,999]
[46,null,null,null,null,null,null,null,null,null,null,null,999,null,null,null,999]
[47,null,null,null,null,null,null,null,null,null,null,null,999,null,null,null,999]
[48,null,null,null,null,null,null,null,null,null,null,null,999,null,null,null,999]
[49,null,null,null,null,null,null,null,null,null,null,null,999,null,null,null,999]
[50,null,null,null,null,null,null,null,null,null,null,null,999,null,null,null,999]
[51,null,null,null,null,null,null,null,null,null,null,null,999,null,null,null,999]
[52,null,null,null,null,null,null,null,null,null,null,null,999,null,null,null,999]
[53,null,null,null,null,null,null,null,null,null,null,null,999,null,null,null,999]
[54,null,null,null,null,null,null,null,null,null,null,null,999,null,null,null,999]
[55,null,null,null,null,null,null,null,null,null,null,null,999,null,null,null,999]
[56,null,null,null,null,null,null,null,null,null,null,null,999,null,null,null,999]
[57,null,null,null,null,null,null,null,null,null,null,null,999,null,null,null,999]
[58,null,null,null,null,null,null,null,null,null,null,null,999,null,null,null,999]
[59,null,null,null,null,null,null,null,null,null,null,null,999,null,null,null,999]
[60,null,null,null,null,null,null,null,null,null,null,null,999,null,null,null,999]
[61,null,null,null,null,null,null,null,null,null,null,null,999,null,null,null,999]
[62,null,null,null,null,null,null,null,null,null,null,null,999,null,null,null,999]
[63,null,null,null,null,null,null,null,null,null,null,null,999,null,null,null,999]
[64,null,null,null,null,null,null,null,null,null,null,null,999,null,null,null,999]
[65,null,null,null,null,null,null,null,null,null,null,null,{"$f":"IF(R71=\"\",999,R71)","v":999},null,null,null,{"$f":"IF(O71=\"DA\",1,IF(O71=\"WC\",2,IF(O71=\"SE\",3,IF(O71=\"Q\",4,IF(O71=\"LL\",5,999)))))","v":999}]
[66,null,null,null,null,null,null,null,null,null,null,null,999,null,null,null,999]
[67,null,null,null,null,null,null,null,null,null,null,null,999,null,null,null,999]
[68,null,null,null,null,null,null,null,null,null,null,null,999,null,null,null,999]
[69,null,null,null,null,null,null,null,null,null,null,null,999,null,null,null,999]
[70,null,null,null,null,null,null,null,null,null,null,null,999,null,null,null,999]
[71,null,null,null,null,null,null,null,null,null,null,null,999,null,null,null,999]
[72,null,null,null,null,null,null,null,null,null,null,null,999,null,null,null,999]
[73,null,null,null,null,null,null,null,null,null,null,null,999,null,null,null,999]
[74,null,null,null,null,null,null,null,null,null,null,null,999,null,null,null,999]
[75,null,null,null,null,null,null,null,null,null,null,null,999,null,null,null,999]
[76,null,null,null,null,null,null,null,null,null,null,null,999,null,null,null,999]
[77,null,null,null,null,null,null,null,null,null,null,null,999,null,null,null,999]
[78,null,null,null,null,null,null,null,null,null,null,null,999,null,null,null,999]
[79,null,null,null,null,null,null,null,null,null,null,null,999,null,null,null,999]
[80,null,null,null,null,null,null,null,null,null,null,null,999,null,null,null,999]
[81,null,null,null,null,null,null,null,null,null,null,null,999,null,null,null,999]
[82,null,null,null,null,null,null,null,null,null,null,null,999,null,null,null,999]
[83,null,null,null,null,null,null,null,null,null,null,null,999,null,null,null,999]
[84,null,null,null,null,null,null,null,null,null,null,null,999,null,null,null,999]
[85,null,null,null,null,null,null,null,null,null,null,null,999,null,null,null,999]
[86,null,null,null,null,null,null,null,null,null,null,null,999,null,null,null,999]
[87,null,null,null,null,null,null,null,null,null,null,null,999,null,null,null,999]
[88,null,null,null,null,null,null,null,null,null,null,null,999,null,null,null,999]
[89,null,null,null,null,null,null,null,null,null,null,null,999,null,null,null,999]
[90,null,null,null,null,null,null,null,null,null,null,null,999,null,null,null,999]
[91,null,null,null,null,null,null,null,null,null,null,null,999,null,null,null,999]
[92,null,null,null,null,null,null,null,null,null,null,null,999,null,null,null,999]
[93,null,null,null,null,null,null,null,null,null,null,null,999,null,null,null,999]
[94,null,null,null,null,null,null,null,null,null,null,null,999,null,null,null,999]
[95,null,null,null,null,null,null,null,null,null,null,null,999,null,null,null,999]
[96,null,null,null,null,null,null,null,null,null,null,null,999,null,null,null,999]
[97,null,null,null,null,null,null,null,null,null,null,null,{"$f":"IF(R103=\"\",999,R103)","v":999},null,null,null,{"$f":"IF(O103=\"DA\",1,IF(O103=\"WC\",2,IF(O103=\"SE\",3,IF(O103=\"Q\",4,IF(O103=\"LL\",5,999)))))","v":999}]
[98,null,null,null,null,null,null,null,null,null,null,null,999,null,null,null,999]
[99,null,null,null,null,null,null,null,null,null,null,null,999,null,null,null,999]
[100,null,null,null,null,null,null,null,null,null,null,null,999,null,null,null,999]
[101,null,null,null,null,null,null,null,null,null,null,null,999,null,null,null,999]
[102,null,null,null,null,null,null,null,null,null,null,null,999,null,null,null,999]
[103,null,null,null,null,null,null,null,null,null,null,null,999,null,null,null,999]
[104,null,null,null,null,null,null,null,null,null,null,null,999,null,null,null,999]
[105,null,null,null,null,null,null,null,null,null,null,null,999,null,null,null,999]
[106,null,null,null,null,null,null,null,null,null,null,null,999,null,null,null,999]
[107,null,null,null,null,null,null,null,null,null,null,null,999,null,null,null,999]
[108,null,null,null,null,null,null,null,null,null,null,null,999,null,null,null,999]
[109,null,null,null,null,null,null,null,null,null,null,null,999,null,null,null,999]
[110,null,null,null,null,null,null,null,null,null,null,null,999,null,null,null,999]
[111,null,null,null,null,null,null,null,null,null,null,null,999,null,null,null,999]
[112,null,null,null,null,null,null,null,null,null,null,null,999,null,null,null,999]
[113,null,null,null,null,null,null,null,null,null,null,null,999,null,null,null,999]
[114,null,null,null,null,null,null,null,null,null,null,null,999,null,null,null,999]
[115,null,null,null,null,null,null,null,null,null,null,null,999,null,null,null,999]
[116,null,null,null,null,null,null,null,null,null,null,null,999,null,null,null,999]
[117,null,null,null,null,null,null,null,null,null,null,null,999,null,null,null,999]
[118,null,null,null,null,null,null,null,null,null,null,null,999,null,null,null,999]
[119,null,null,null,null,null,null,null,null,null,null,null,999,null,null,null,999]
[120,null,null,null,null,null,null,null,null,null,null,null,999,null,null,null,999]
[121,null,null,null,null,null,null,null,null,null,null,null,999,null,null,null,999]
[122,null,null,null,null,null,null,null,null,null,null,null,999,null,null,null,999]
[123,null,null,null,null,null,null,null,null,null,null,null,999,null,null,null,999]
[124,null,null,null,null,null,null,null,null,null,null,null,999,null,null,null,999]
[125,null,null,null,null,null,null,null,null,null,null,null,999,null,null,null,999]
[126,null,null,null,null,null,null,null,null,null,null,null,999,null,null,null,999]
[127,null,null,null,null,null,null,null,null,null,null,null,999,null,null,null,999]
[128,null,null,null,null,null,null,null,null,null,null,null,999,null,null,null,999]

{"sheet":"Girls Si Main 24&32","index":2,"n_rows":69,"n_cols":20,"rows_kept":69,"cut":false,"hidden":false,"merged":[[3,0,3,2]]}
["ΚΟΛΟΚΟΤΡΩΝΕΙΑ 2017",null,null,null,null,null,null,null,null,"ΚΟΡΙΤΣΙΑ MASTERS",null,null,null,"CU"]
["TRIPOLIS TENNIS OPEN",null,null,null,null,null,null,null,null,"MAIN DRAW (16)"]
["Week of",null,null,null,null,"City, Country",null,null,null,null,null,"Tourn. ID",null,null,null,null,"ITF Referee"]
[null,null,null,null,"ΤΡΙΠΟΛΗ - AEK ΤΡΙΠΟΛΗΣ - Tennis Cup",null,null,null,null,null,null,"OPEN",null,"ΠΑΠΑΔΟΠΟΥΛΟΣ - ΧΑΤΖΗΓΙΑΝΝΗ"]
[null,"St.","Rank","Seed","Family Name","First name",null,"Nationality",null,"2nd Round",null,"Quarterfinals",null,"Semifinals",null,"Final"]
[]
[1,null,null,null,"ΑΣΕΝΟΒΑ ΓΚΕΡΙ",null,null,null,null,null,null,null,null,null,null,null,null,null,null,{"$f":"#REF!","v":{"$error":"#REF!"}}]
[null,null,null,null,null,null,null,null,null,"ΑΣΕΝΟΒΑ",null,null,null,null,null,null,null,null,null,{"$f":"#REF!","v":{"$error":"#REF!"}}]
[2,null,null,null,"BYE",null,null,null,null,null,null,null,null,null,null,null,null,null,null,{"$f":"#REF!","v":{"$error":"#REF!"}}]
[null,null,null,null,null,null,null,null,null,null,null,"ΑΣΕΝΟΒΑ",null,null,null,null,null,null,null,{"$f":"#REF!","v":{"$error":"#REF!"}}]
[3,null,null,null,"ΠΙΤΣΑΚΗ ΑΝΑΣΤΑΣΙΑ",null,null,null,null,null,null,"40 40",null,null,null,null,null,null,null,{"$f":"#REF!","v":{"$error":"#REF!"}}]
[null,null,null,null,null,null,null,null,null,"ΠΙΤΣΑΚΗ",null,null,null,null,null,null,null,null,null,{"$f":"#REF!","v":{"$error":"#REF!"}}]
[4,null,null,null,"BYE",null,null,null,null,null,null,null,null,null,null,null,null,null,null,{"$f":"#REF!","v":{"$error":"#REF!"}}]
[null,null,null,null,null,null,null,null,null,null,null,null,null,"ΑΣΕΝΟΒΑ",null,null,null,null,null,{"$f":"#REF!","v":{"$error":"#REF!"}}]
[5,null,null,null,"ΠΑΠΑΝΤΩΝΗ ΧΡΥΣΟΥΛΑ",null,null,null,null,null,null,null,null,"40 41",null,null,null,null,null,{"$f":"#REF!","v":{"$error":"#REF!"}}]
[null,null,null,null,null,null,null,null,null,"ΠΑΠΑΝΤΩΝΗ",null,null,null,null,null,null,null,null,null,{"$f":"#REF!","v":{"$error":"#REF!"}}]
[6,null,null,null,"BYE"]
[null,null,null,null,null,null,null,null,null,null,null,"ΣΟΥΜΠΛΗ"]
[7,null,null,null,"BYE",null,null,null,null,null,null,"40 42"]
[null,null,null,null,null,null,null,null,null,"ΣΟΥΜΠΛΗ"]
[8,null,null,null,"ΣΟΥΜΠΛΗ ΘΕΟΔΩΡΑ"]
[null,null,null,null,null,null,null,null,null,null,null,null,null,null,null,"ΑΣΕΝΟΒΑ"]
[9,null,null,null,"ΡΗΓΑ ΣΤΥΛΙΑΝΗ",null,null,null,null,null,null,null,null,null,null,"40 42"]
[null,null,null,null,null,null,null,null,null,"ΡΗΓΑ"]
[10,null,null,null,"BYE"]
[null,null,null,null,null,null,null,null,null,null,null,"ΡΗΓΑ"]
[11,null,null,null,"ΛΙΓΚΡΗ ΑΝΑΣΤΑΣΙΑ",null,null,null,null,null,null,"40 40"]
[null,null,null,null,null,null,null,null,null,"ΛΙΓΚΡΗ"]
[12,null,null,null,"BYE"]
[null,null,null,null,null,null,null,null,null,null,null,null,null,"ΡΗΓΑ"]
[13,null,null,null,"ΠΑΝΤΩΤΗ ΔΑΝΑΗ",null,null,null,null,null,null,null,null,"41 42"]
[null,null,null,null,null,null,null,null,null,"ΠΑΝΤΩΤΗ"]
[14,null,null,null,"ΚΑΡΑΜΟΥΤΖΟΥ ΣΟΝΙΑ",null,null,null,null,"40 41"]
[null,null,null,null,null,null,null,null,null,null,null,"ΠΑΝΤΩΤΗ"]
[15,null,null,null,"BYE",null,null,null,null,null,null,"40 42"]
[null,null,null,null,null,null,null,null,null,"ΣΤΑΜΑΤΟΠΟΥΛΟΥ"]
[16,null,null,null,"ΣΤΑΜΑΤΟΠΟΥΛΟΥ ΜΑΡΙΑ"]
[null,null,null,null,null,null,null,null,null,null,null,null,null,null,null,"ΑΣΕΝΟΒΑ"]
[17,null,null,null,"ΚΥΡΙΜΗ ΗΛΙΑ",null,null,null,null,null,null,null,null,null,null,"61 61"]
[null,null,null,null,null,null,null,null,null,"ΚΥΡΙΜΗ"]
[18,null,null,null,"BYE"]
[null,null,null,null,null,null,null,null,null,null,null,"ΚΥΡΙΜΗ"]
[19,null,null,null,"ΑΘΑΝΑΣΟΠΟΥΛΟΥ ΗΛΙΑΝΝΑ",null,null,null,null,null,null,"41 40"]
[null,null,null,null,null,null,null,null,null,"ΑΘΑΝΑΣΟΠΟΥΛΟΥ"]
[20,null,null,null,"BYE"]
[null,null,null,null,null,null,null,null,null,null,null,null,null,"ΤΣΙΛΙΜΠΗ"]
[21,null,null,null,"BYE",null,null,null,null,null,null,null,null,"14 41 10-7"]
[null,null,null,null,null,null,null,null,null,"ΛΑΜΠΡΟΠΟΥΛΟΥ"]
[22,null,null,null,"ΛΑΜΠΡΟΠΟΥΛΟΥ ΜΑΤΙΝΑ"]
[null,null,null,null,null,null,null,null,null,null,null,"ΤΣΙΛΙΜΠΗ"]
[23,null,null,null,"BYE",null,null,null,null,null,null,"41 41"]
[null,null,null,null,null,null,null,null,null,"ΤΣΙΛΙΜΠΗ"]
[24,null,null,null,"ΤΣΙΛΙΜΠΗ ΜΙΡΚΑ"]
[null,null,null,null,null,null,null,null,null,null,null,null,null,null,null,"ΤΣΙΛΙΜΠΗ"]
[25,null,null,null,"ΠΑΠΑΓΕΩΡΓΙΟΥ ΑΛΕΞΑΝΔΡΑ",null,null,null,null,null,null,null,null,null,null,"w.o."]
[null,null,null,null,null,null,null,null,null,"ΠΑΠΑΓΕΩΡΓΙΟΥ"]
[26,null,null,null,"BYE"]
[null,null,null,null,null,null,null,null,null,null,null,"ΠΑΠΑΓΕΩΡΓΙΟΥ"]
[27,null,null,null,"ΜΠΛΟΥΓΟΥΡΑ ΛΙΔΑ",null,null,null,null,null,null,"54 42"]
[null,null,null,null,null,null,null,null,null,"ΜΠΛΟΥΓΟΥΡΑ"]
[28,null,null,null,"BYE"]
[null,null,null,null,null,null,null,null,null,null,null,null,null,"ΠΑΠΑΚΩΝΣΤΑΝΤΙΝΟΥ"]
[29,null,null,null,"BYE",null,null,null,null,null,null,null,null,"40 41"]
[null,null,null,null,null,null,null,null,null,"ΜΑΝΔΡΟΥ"]
[30,null,null,null,"ΜΑΝΔΡΟΥ ΚΩΝΣΤΑΝΤΙΝΑ"]
[null,null,null,null,null,null,null,null,null,null,null,"ΠΑΠΑΚΩΝΣΤΑΝΤΙΝΟΥ"]
[31,null,null,null,"BYE",null,null,null,null,null,null,"40 40"]
[null,null,null,null,null,null,null,null,null,"ΠΑΠΑΚΩΝΣΤΑΝΤΙΝΟΥ"]
[32,null,null,null,"ΠΑΠΑΚΩΝΣΤΑΝΤΙΝΟΥ ΜΑΡΙΑΝΝΑ"]